bitfinex/quotes_BTCUSD_20241111
["timestamp","ask_amount","ask_price","bid_price","bid_amount"]
[1731364780373,0.11422305,86970.0,86963.0,0.0067066]
[1731364781914,0.17217137,86979.0,86963.0,0.0067066]
[1731364782093,0.17217137,86970.0,86963.0,0.0067066]
[1731364782330,0.11422305,86969.0,86963.0,0.0067066]
[1731364783101,0.17302467,86991.0,86968.0,0.005]
[1731364783286,0.17217137,86982.0,86974.0,0.0454]
[1731364783485,0.11422305,86982.0,86974.0,0.0454]
[1731364784140,0.17217137,86978.0,86974.0,0.0454]
[1731364784391,0.11422305,86982.0,86974.0,0.0454]
[1731364785143,0.28639442,86981.0,86971.0,0.005]
[1731364785394,0.11422305,86981.0,86970.0,0.005]
[1731364785608,0.11422305,86981.0,86971.0,0.005]
[1731364786214,0.11330605,86981.0,86971.0,0.005]
[1731364787958,0.11330605,86981.0,86970.0,0.005]
[1731364789726,0.11330605,86981.0,86958.0,0.005]
[1731364789727,0.17217137,86980.0,86963.0,0.0067066]
[1731364789921,0.11422305,86979.0,86963.0,0.0067066]
[1731364790390,0.11422305,86975.0,86963.0,0.0067066]
[1731364792977,0.17217137,86971.0,86963.0,0.0067066]
[1731364793180,0.11422305,86970.0,86963.0,0.0067066]
[1731364795140,0.11422305,86964.0,86963.0,0.0017066]
[1731364795368,0.15125948,86964.0,86963.0,0.0017066]
[1731364795931,0.17425948,86964.0,86963.0,0.0017066]
[1731364797025,0.34643085,86964.0,86963.0,0.0017066]
[1731364797227,0.17425948,86964.0,86963.0,0.0017066]
[1731364797451,0.21163297,86964.0,86963.0,0.0017066]
[1731364797657,0.023,86963.0,86957.0,0.001697]
[1731364797871,0.13722305,86958.0,86957.0,0.001697]
[1731364798063,0.13722305,86958.0,86951.0,0.0002]
[1731364798064,0.22247546,86957.0,86951.0,0.0002]
[1731364798270,0.13722305,86955.0,86951.0,0.0002]
[1731364798418,0.20903038,86955.0,86951.0,0.0002]
[1731364799044,0.023,86954.0,86951.0,0.0002]
[1731364799266,0.13722305,86952.0,86951.0,0.0002]
[1731364799476,0.20872445,86952.0,86951.0,0.0002]
[1731364799918,0.3733032,86952.0,86951.0,0.0002]
[1731364800132,0.3733032,86952.0,86911.0,0.0002]
[1731364800133,0.023,86951.0,86911.0,0.0002]
[1731364800347,0.023,86952.0,86924.0,0.17217137]
[1731364800574,0.19947546,86964.0,86925.0,0.13908468]
[1731364800812,0.17217137,86947.0,86933.0,0.005]
[1731364801024,0.17217137,86947.0,86925.0,0.1284]
[1731364801025,0.19947546,86964.0,86934.0,0.005]
[1731364801279,0.19947546,86973.0,86934.0,0.005]
[1731364801731,0.0037288,86982.0,86928.0,0.005]
[1731364801732,0.0037288,86982.0,86945.0,0.005]
[1731364801954,0.17217137,86964.0,86953.0,0.005]
[1731364802135,0.11422305,86963.0,86953.0,0.005]
[1731364802695,0.11422305,86963.0,86946.0,0.1296]
[1731364802696,0.11422305,86963.0,86947.0,0.005]
[1731364802917,0.11422305,86963.0,86953.0,0.005]
[1731364803119,0.0037288,86982.0,86959.0,0.00447438]
[1731364803320,0.17217137,86971.0,86961.0,0.00447438]
[1731364803524,0.11422305,86970.0,86961.0,0.00447438]
[1731364804490,0.10964393,86970.0,86961.0,0.00447438]
[1731364805699,0.17217137,86969.0,86961.0,0.00447438]
[1731364805912,0.11422305,86968.0,86961.0,0.00447438]
[1731364807411,0.11422305,86968.0,86962.0,0.00447438]
[1731364810461,0.17217137,86963.0,86946.0,0.1296]
[1731364810667,0.11422305,86962.0,86950.0,0.00447438]
[1731364811974,0.11422305,86962.0,86949.0,0.00447438]
[1731364812177,0.11422305,86962.0,86950.0,0.00447438]
[1731364814011,0.11422305,86962.0,86948.0,0.00447438]
[1731364814805,0.11422305,86962.0,86951.0,0.00447438]
[1731364815013,0.11422305,86962.0,86948.0,0.00447438]
[1731364815544,0.11422305,86962.0,86951.0,0.00447438]
[1731364815753,0.11422305,86962.0,86948.0,0.00447438]
[1731364816152,0.11422305,86962.0,86946.0,0.1296]
[1731364816153,0.11422305,86962.0,86950.0,0.00447438]
[1731364816354,0.11307392,86962.0,86951.0,0.00447438]
[1731364816926,0.11307392,86962.0,86950.0,0.00447438]
[1731364817525,0.11178592,86962.0,86949.0,0.00447438]
[1731364818653,0.11178592,86962.0,86946.0,0.1296]
[1731364821608,0.17217137,86956.0,86946.0,0.1296]
[1731364821802,0.3,86963.0,86946.0,0.1296]
[1731364821803,0.11422305,86955.0,86946.0,0.1296]
[1731364822414,0.11422305,86951.0,86946.0,0.1296]
[1731364822618,0.11422305,86951.0,86940.0,0.00447438]
[1731364822818,0.11422305,86949.0,86940.0,0.00447438]
[1731364823239,0.19947546,86948.0,86937.0,0.00447438]
[1731364823443,0.11422305,86947.0,86937.0,0.00447438]
[1731364824198,0.11422305,86947.0,86934.0,0.08717438]
[1731364824422,0.11422305,86947.0,86937.0,0.00447438]
[1731364825643,0.17217137,86945.0,86931.0,0.0481536]
[1731364825817,0.11422305,86944.0,86931.0,0.0481536]
[1731364826218,0.11422305,86936.0,86931.0,0.0481536]
[1731364826880,0.13189855,86934.0,86931.0,0.0481536]
[1731364827052,0.11422305,86933.0,86931.0,0.0008536]
[1731364828964,0.13189855,86934.0,86931.0,0.0008536]
[1731364828965,0.11422305,86932.0,86931.0,0.0008536]
[1731364829208,0.15038562,86932.0,86931.0,0.0008536]
[1731364829464,0.17861404,86932.0,86931.0,0.0008536]
[1731364829658,0.15038562,86932.0,86931.0,0.0008536]
[1731364830932,0.17338562,86932.0,86931.0,0.0008536]
[1731364834008,0.17391124,86932.0,86931.0,0.0008536]
[1731364834232,0.1204,86930.0,86874.0,0.03420927]
[1731364834491,0.023,86931.0,86895.0,0.17217137]
[1731364834492,0.00052562,86896.0,86895.0,0.17217137]
[1731364834687,0.00052562,86874.0,86866.0,0.0004698]
[1731364835196,0.4,86911.0,86866.0,0.0004698]
[1731364835197,0.00052562,86868.0,86866.0,0.0004698]
[1731364835407,0.2637971,86867.0,86866.0,0.0004698]
[1731364835617,0.32239902,86867.0,86866.0,0.0004698]
[1731364836053,0.19050047,86867.0,86862.0,0.0031552]
[1731364836268,0.13189855,86867.0,86862.0,0.0031552]
[1731364836679,0.11422305,86863.0,86862.0,0.0031552]
[1731364836888,0.3499261,86863.0,86862.0,0.02748063]
[1731364837077,0.14982497,86863.0,86862.0,0.0031552]
[1731364837891,0.10518298,86863.0,86862.0,0.0031552]
[1731364838868,0.10518298,86863.0,86813.0,0.0016962]
[1731364838869,0.20010113,86828.0,86813.0,0.0016962]
[1731364839028,0.11422305,86822.0,86813.0,0.0016962]
[1731364839527,0.11422305,86820.0,86813.0,0.0016962]
[1731364839851,0.20010113,86818.0,86813.0,0.0016962]
[1731364840075,0.11422305,86820.0,86813.0,0.0016962]
[1731364840281,0.20010113,86827.0,86813.0,0.0016962]
[1731364840282,0.11422305,86817.0,86813.0,0.0016962]
[1731364840482,0.31432418,86817.0,86813.0,0.0016962]
[1731364841294,0.11422305,86817.0,86813.0,0.0016962]
[1731364841666,0.11422305,86817.0,86814.0,3e-05]
[1731364842093,0.80496992,86815.0,86814.0,3e-05]
[1731364842310,0.80496992,86815.0,86805.0,0.0016998]
[1731364842311,0.00052562,86809.0,86805.0,0.0016998]
[1731364842520,0.51442531,86806.0,86790.0,0.0087008]
[1731364842753,0.31432418,86792.0,86790.0,0.0087008]
[1731364842962,0.35147705,86792.0,86790.0,0.0087008]
[1731364844039,0.15137592,86792.0,86790.0,0.0087008]
[1731364844905,0.15137592,86792.0,86771.0,0.0002]
[1731364844906,0.00052562,86782.0,86771.0,0.0002]
[1731364845114,0.11422305,86772.0,86771.0,0.0002]
[1731364845321,0.15002375,86772.0,86771.0,0.0002]
[1731364847651,0.32285173,86772.0,86771.0,0.0002]
[1731364848291,0.15002375,86772.0,86771.0,0.0002]
[1731364848719,0.21561442,86772.0,86771.0,0.0002]
[1731364849614,0.15002375,86772.0,86771.0,0.0002]
[1731364849836,0.15002375,86772.0,86752.0,0.0803]
[1731364849837,0.15002375,86772.0,86752.0,0.0647366]
[1731364850039,0.11422305,86766.0,86752.0,0.0647366]
[1731364851291,0.17282798,86759.0,86752.0,0.0647366]
[1731364851488,0.11422305,86758.0,86752.0,0.0647366]
[1731364851828,0.17282798,86755.0,86752.0,0.0647366]
[1731364851971,0.11422305,86754.0,86752.0,0.0647366]
[1731364853647,0.17282798,86769.0,86757.0,0.00447438]
[1731364853795,0.17282798,86769.0,86767.0,0.00447438]
[1731364854004,0.3,86773.0,86772.0,0.0549]
[1731364854205,0.32815366,86773.0,86772.0,0.05937438]
[1731364855423,0.32700212,86773.0,86772.0,0.05937438]
[1731364855646,0.03184978,86773.0,86772.0,0.16237438]
[1731364855894,0.02824122,86773.0,86772.0,0.16237438]
[1731364856103,2.0311,86774.0,86773.0,0.03247438]
[1731364856295,1.903,86774.0,86773.0,0.03247438]
[1731364856861,1.903,86774.0,86773.0,0.03447438]
[1731364857099,1.8249,86774.0,86773.0,0.13247438]
[1731364857481,1.8249,86774.0,86773.0,0.13747438]
[1731364858151,1.6649,86774.0,86773.0,0.15317438]
[1731364858484,1.62808843,86774.0,86773.0,0.21064773]
[1731364858680,1.62808843,86774.0,86773.0,0.32987078]
[1731364858854,1.60945995,86774.0,86773.0,0.32987078]
[1731364859063,1.595325,86774.0,86773.0,0.32987078]
[1731364859274,1.595325,86774.0,86773.0,0.33187078]
[1731364859474,1.5880117,86774.0,86773.0,0.32987078]
[1731364859652,1.5880117,86774.0,86773.0,0.33187078]
[1731364860275,1.57257182,86774.0,86773.0,0.33187078]
[1731364860472,1.53847381,86774.0,86773.0,0.33187078]
[1731364860696,1.53847381,86774.0,86773.0,0.32987078]
[1731364860936,1.52198169,86774.0,86773.0,0.32987078]
[1731364861155,1.4421204,86774.0,86773.0,0.32987078]
[1731364862108,0.5881586,86774.0,86773.0,0.32987078]
[1731364862307,0.57895212,86774.0,86773.0,0.33187078]
[1731364862554,2.0744,86775.0,86773.0,0.33187078]
[1731364862555,0.93398143,86775.0,86774.0,0.20201423]
[1731364862731,0.50132508,86775.0,86774.0,0.31423728]
[1731364862918,0.1625388,86775.0,86774.0,0.31823728]
[1731364863119,1.86347139,86776.0,86775.0,0.18138886]
[1731364863327,1.86347139,86776.0,86775.0,0.49571304]
[1731364863542,1.4695076,86776.0,86775.0,0.49571304]
[1731364863726,1.09224787,86776.0,86775.0,0.49571304]
[1731364863945,0.84899144,86776.0,86775.0,0.78901417]
[1731364864344,0.60812138,86776.0,86775.0,0.78901417]
[1731364864534,0.0474,86856.0,86800.0,0.07669181]
[1731364864535,0.15426849,86801.0,86800.0,0.07669181]
[1731364864838,0.15426849,86801.0,86775.0,0.61442531]
[1731364864839,0.73510819,86777.0,86776.0,0.05780414]
[1731364865066,0.005,86855.0,86776.0,0.05780414]
[1731364865067,0.17282798,86805.0,86776.0,0.05780414]
[1731364865278,0.16323703,86796.0,86776.0,0.05780414]
[1731364865928,0.16696945,86805.0,86795.0,0.05721466]
[1731364866142,0.16670968,86795.0,86772.0,0.05752183]
[1731364866321,0.15987294,86805.0,86801.0,0.05773676]
[1731364866525,0.17282798,86802.0,86801.0,0.15773676]
[1731364866821,0.16750289,86815.0,86801.0,0.15773676]
[1731364866978,0.16750289,86815.0,86814.0,0.30010113]
[1731364867445,0.0059842,86832.0,86815.0,0.123]
[1731364867633,0.0059842,86832.0,86825.0,0.20010113]
[1731364867634,0.17100603,86828.0,86825.0,0.20010113]
[1731364867839,0.17100603,86828.0,86826.0,0.21422305]
[1731364868217,0.002,86831.0,86826.0,0.21422305]
[1731364868825,0.0059842,86832.0,86826.0,0.21422305]
[1731364869463,0.00575189,86832.0,86826.0,0.21422305]
[1731364871336,0.00575189,86832.0,86827.0,0.023]
[1731364871452,0.17282798,86837.0,86829.0,0.123]
[1731364871657,0.17282798,86837.0,86821.0,0.20010113]
[1731364871658,0.17282798,86836.0,86831.0,0.1]
[1731364871864,0.06183227,86847.0,86831.0,0.1]
[1731364871865,0.06183227,86847.0,86831.0,0.21422305]
[1731364872099,0.002,86832.0,86831.0,0.21422305]
[1731364872299,0.06183227,86847.0,86831.0,0.21422305]
[1731364872859,0.0017032,86832.0,86831.0,0.21422305]
[1731364873139,0.0017032,86832.0,86831.0,0.11422305]
[1731364873140,0.0037032,86832.0,86831.0,0.11422305]
[1731364873352,0.1266,86831.0,86796.0,0.05705295]
[1731364873551,0.002,86809.0,86795.0,0.17282798]
[1731364873802,0.005,86798.0,86795.0,0.17282798]
[1731364873995,0.002,86789.0,86773.0,0.0008516]
[1731364874320,0.20210113,86789.0,86773.0,0.0008516]
[1731364874521,0.005,86787.0,86773.0,0.0008516]
[1731364874744,0.07201822,86786.0,86773.0,0.0008516]
[1731364875164,0.00170094,86780.0,86773.0,0.0008516]
[1731364875280,0.03648246,86780.0,86773.0,0.0008516]
[1731364878835,0.03478152,86780.0,86773.0,0.0008516]
[1731364879039,0.03648246,86780.0,86773.0,0.0008516]
[1731364879443,0.03478152,86780.0,86773.0,0.0008516]
[1731364879737,0.03777811,86780.0,86773.0,0.0008516]
[1731364880705,0.15700116,86780.0,86773.0,0.0008516]
[1731364881555,0.16200116,86780.0,86773.0,0.0008516]
[1731364881753,0.16200116,86780.0,86760.0,0.17282798]
[1731364881754,0.00170094,86770.0,86760.0,0.07509898]
[1731364881960,0.05130094,86770.0,86758.0,0.0032524]
[1731364882133,0.20010113,86762.0,86758.0,0.0032524]
[1731364883149,0.00170094,86759.0,86758.0,0.0032524]
[1731364883994,0.00170094,86759.0,86751.0,0.0002]
[1731364883995,0.005,86753.0,86751.0,0.0002]
[1731364884238,0.19212305,86759.0,86751.0,0.0002]
[1731364884239,0.32602512,86752.0,86751.0,0.0002]
[1731364884436,0.40726138,86752.0,86751.0,0.0002]
[1731364884911,0.01170094,86746.0,86745.0,0.0072946]
[1731364885111,0.12592399,86746.0,86745.0,0.0072946]
[1731364885309,0.20517254,86746.0,86745.0,0.0072946]
[1731364885510,0.20687348,86746.0,86745.0,0.0072946]
[1731364885711,0.00170094,86732.0,86724.0,0.17282798]
[1731364885937,0.31602512,86732.0,86724.0,0.17282798]
[1731364886143,0.35137461,86732.0,86723.0,0.0032524]
[1731364886354,0.23715156,86732.0,86723.0,0.0032524]
[1731364886549,0.03705043,86732.0,86723.0,0.0032524]
[1731364887111,0.0456,86746.0,86728.0,0.05783868]
[1731364887372,0.17282798,86750.0,86733.0,0.05735824]
[1731364887571,0.17282798,86750.0,86735.0,0.15781335]
[1731364887770,0.17282798,86750.0,86737.0,0.1]
[1731364888013,0.17282798,86750.0,86740.0,0.057964]
[1731364888224,0.16432526,86750.0,86742.0,0.1]
[1731364888439,0.16432526,86750.0,86743.0,0.1714145]
[1731364888625,0.16432526,86750.0,86745.0,0.05724722]
[1731364888848,0.16432526,86750.0,86747.0,0.15785952]
[1731364888979,0.17282798,86760.0,86749.0,0.1]
[1731364889791,0.1235,86766.0,86749.0,0.1]
[1731364890016,0.17282798,86759.0,86749.0,0.1]
[1731364890208,0.1235,86766.0,86737.0,0.05726511]
[1731364890417,0.1235,86766.0,86735.0,0.17282798]
[1731364890418,0.17282798,86760.0,86739.0,0.1]
[1731364890642,0.00170094,86744.0,86741.0,0.1]
[1731364890811,0.17282798,86759.0,86743.0,0.1]
[1731364891032,0.17282798,86759.0,86745.0,0.1]
[1731364891605,0.1235,86766.0,86745.0,0.1]
[1731364891786,0.17282798,86760.0,86745.0,0.1]
[1731364892014,0.1235,86766.0,86745.0,0.1]
[1731364892192,0.17282798,86760.0,86745.0,0.1]
[1731364895030,0.00170094,86746.0,86745.0,0.1]
[1731364895579,0.1235,86766.0,86745.0,0.38705103]
[1731364895805,0.1235,86766.0,86735.0,0.17282798]
[1731364895806,0.17282798,86765.0,86750.0,0.023]
[1731364896026,0.17282798,86765.0,86753.0,0.05767666]
[1731364896027,0.17282798,86756.0,86753.0,0.05767666]
[1731364896260,0.17282798,86765.0,86756.0,0.05768009]
[1731364896537,0.17282798,86765.0,86758.0,0.15716607]
[1731364896716,0.17282798,86765.0,86760.0,0.1]
[1731364896923,0.00170094,86762.0,86761.0,0.21422305]
[1731364897244,0.17282798,86765.0,86762.0,0.1]
[1731364897245,0.00170094,86763.0,86762.0,0.1]
[1731364897599,0.17282798,86764.0,86762.0,0.1]
[1731364897812,0.00170094,86765.0,86762.0,0.1]
[1731364898012,0.00170094,86763.0,86762.0,0.1]
[1731364898339,0.00170094,86762.0,86745.0,0.0008515]
[1731364898490,0.00170094,86762.0,86747.0,0.1]
[1731364898698,0.002,86808.0,86747.0,0.1]
[1731364898699,0.00170094,86791.0,86762.0,0.18067752]
[1731364898972,0.005,86809.0,86780.0,0.05741406]
[1731364898973,0.17282798,86785.0,86780.0,0.05741406]
[1731364899190,0.17121899,86785.0,86781.0,0.05779502]
[1731364899414,0.17282798,86800.0,86784.0,0.023]
[1731364899636,0.17043749,86800.0,86788.0,0.023]
[1731364899841,0.17282798,86799.0,86792.0,0.05721861]
[1731364900000,0.17282798,86809.0,86798.0,0.15743266]
[1731364900179,0.17282798,86809.0,86799.0,0.29504668]
[1731364900180,0.17282798,86800.0,86799.0,0.29504668]
[1731364900378,0.17282798,86809.0,86802.0,0.023]
[1731364900580,0.17282798,86809.0,86804.0,0.123]
[1731364900898,0.17282798,86809.0,86806.0,0.1]
[1731364901074,0.21932798,86827.0,86808.0,0.1]
[1731364901273,0.21932798,86827.0,86809.0,0.11422305]
[1731364901461,0.21932798,86827.0,86810.0,0.1]
[1731364901661,0.21932798,86827.0,86812.0,0.1]
[1731364901918,0.21932798,86827.0,86814.0,0.1]
[1731364902169,0.21932798,86827.0,86814.0,0.21422305]
[1731364902822,0.21932798,86827.0,86815.0,0.00230345]
[1731364903232,0.0465,86827.0,86817.0,0.1]
[1731364903445,0.0072946,86830.0,86819.0,0.1]
[1731364903659,0.0072946,86830.0,86820.0,0.11652634]
[1731364904027,0.0072946,86830.0,86821.0,0.1]
[1731364904197,0.0072946,86830.0,86822.0,0.11652627]
[1731364904608,0.0072946,86830.0,86823.0,0.1]
[1731364904853,0.0072946,86830.0,86824.0,0.11652623]
[1731364905117,0.0032524,86879.0,86829.0,0.17282798]
[1731364905328,0.69102929,86853.0,86850.0,0.05723968]
[1731364905536,0.69102929,86875.0,86852.0,0.0575325]
[1731364905732,0.68829784,86875.0,86849.0,0.05779204]
[1731364905951,0.0032524,86879.0,86859.0,0.30724503]
[1731364906155,0.0032524,86914.0,86889.0,0.123]
[1731364906391,0.69102929,86890.0,86889.0,0.123]
[1731364906595,0.69102929,86911.0,86889.0,0.23722305]
[1731364906947,0.0032524,86914.0,86889.0,0.23722305]
[1731364906948,0.69102929,86910.0,86889.0,0.23722305]
[1731364907149,0.0032524,86914.0,86876.0,0.30724503]
[1731364907150,0.69293629,86909.0,86895.0,0.1]
[1731364907356,0.001907,86909.0,86895.0,0.1]
[1731364907616,0.00170094,86896.0,86895.0,0.1]
[1731364907824,0.00170094,86891.0,86883.0,0.69102929]
[1731364908019,0.005,86903.0,86883.0,0.69102929]
[1731364908794,0.00170094,86884.0,86883.0,0.69102929]
[1731364908983,0.00170094,86884.0,86883.0,0.79102929]
[1731364909183,0.00170094,86884.0,86883.0,0.1]
[1731364909418,0.0008519,86896.0,86884.0,0.1]
[1731364910266,0.0008519,86896.0,86885.0,0.17263206]
[1731364910471,0.0008519,86896.0,86886.0,0.1]
[1731364910824,0.0008519,86896.0,86895.0,0.1]
[1731364911254,0.03653044,86896.0,86895.0,0.1]
[1731364911586,0.0008519,86896.0,86895.0,0.1]
[1731364911997,0.0008519,86896.0,86890.0,0.04158948]
[1731364912130,0.0008519,86896.0,86895.0,0.1]
[1731364913096,0.0360778,86896.0,86895.0,0.1]
[1731364913300,0.0008519,86896.0,86886.0,0.10230149]
[1731364913629,0.0008519,86896.0,86895.0,0.1]
[1731364913922,0.0008519,86896.0,86895.0,0.11652435]
[1731364914134,0.0008519,86896.0,86895.0,0.21652435]
[1731364916105,0.0008519,86896.0,86895.0,0.21422305]
[1731364916305,0.0008519,86896.0,86875.0,0.17763206]
[1731364916306,0.005,86894.0,86875.0,0.005]
[1731364916513,0.11507495,86896.0,86876.0,0.17263206]
[1731364916514,0.0795,86881.0,86876.0,0.17263206]
[1731364916729,0.005,86868.0,86867.0,0.17263206]
[1731364917163,0.005,86868.0,86857.0,0.17263206]
[1731364917372,0.00170094,86858.0,86857.0,0.17263206]
[1731364917590,0.03682466,86866.0,86857.0,0.17263206]
[1731364917838,0.04165204,86866.0,86858.0,0.17263206]
[1731364918057,0.0488,86867.0,86859.0,0.1]
[1731364919156,0.00170094,86851.0,86850.0,0.00230255]
[1731364919379,0.00170094,86851.0,86850.0,0.00188255]
[1731364919589,0.00482738,86866.0,86840.0,0.1]
[1731364919806,0.00482738,86866.0,86849.0,0.1]
[1731364919807,0.04174684,86866.0,86849.0,0.1]
[1731364920005,0.00482738,86866.0,86849.0,0.1]
[1731364920418,0.00170094,86853.0,86849.0,0.1]
[1731364921133,0.00482738,86866.0,86849.0,0.1]
[1731364921494,0.00482738,86866.0,86850.0,0.001701]
[1731364922408,0.005,86863.0,86850.0,0.001701]
[1731364923740,0.00170094,86851.0,86850.0,0.001701]
[1731364924093,0.16302305,86867.0,86850.0,0.001701]
[1731364924094,0.005,86855.0,86850.0,0.001701]
[1731364924306,0.0851,86853.0,86850.0,0.001701]
[1731364924872,0.0801,86853.0,86850.0,0.001701]
[1731364925098,0.0851,86853.0,86850.0,0.001701]
[1731364926324,0.005,86851.0,86850.0,0.001701]
[1731364926740,0.28765706,86938.0,86850.0,0.001701]
[1731364926958,0.09890598,86882.0,86881.0,0.01]
[1731364927160,0.09890598,86882.0,86881.0,0.06867198]
[1731364927366,0.13349654,86882.0,86872.0,0.1]
[1731364927574,0.30724503,86876.0,86872.0,0.1]
[1731364927783,0.11422305,86875.0,86872.0,0.1]
[1731364927994,0.11422305,86875.0,86859.0,0.17263206]
[1731364928227,0.30724503,86863.0,86860.0,0.17263206]
[1731364928485,0.30724503,86863.0,86850.0,0.17433306]
[1731364928486,0.11422305,86862.0,86850.0,0.17433306]
[1731364928688,0.30724503,86851.0,86850.0,0.001701]
[1731364928859,0.44531678,86851.0,86850.0,0.001701]
[1731364929459,0.47031678,86851.0,86850.0,0.001701]
[1731364929677,0.47031678,86851.0,86830.0,0.17263206]
[1731364929678,0.023,86850.0,86830.0,0.17263206]
[1731364929882,0.023,86847.0,86830.0,0.17263206]
[1731364930105,0.11422305,86846.0,86830.0,0.17263206]
[1731364930328,0.023,86845.0,86830.0,0.17263206]
[1731364930555,0.023,86845.0,86833.0,0.005]
[1731364930556,0.11422305,86845.0,86833.0,0.005]
[1731364930776,0.11422305,86845.0,86822.0,0.005]
[1731364930777,0.11422305,86845.0,86831.0,0.17263206]
[1731364930943,0.11422305,86845.0,86832.0,0.1]
[1731364931145,0.023,86844.0,86832.0,0.1]
[1731364931369,0.13724941,86844.0,86832.0,0.1]
[1731364931599,0.16024941,86844.0,86832.0,0.1]
[1731364934137,0.16024941,86844.0,86822.0,0.105]
[1731364934782,0.16024941,86844.0,86843.0,0.0022427]
[1731364938465,0.13724941,86844.0,86843.0,0.0022427]
[1731364944441,0.13249136,86844.0,86843.0,0.0022427]
[1731364947204,0.02302636,86844.0,86843.0,0.02697924]
[1731364947663,0.02421272,86849.0,86843.0,0.03197924]
[1731364948089,0.02421272,86849.0,86844.0,0.02473654]
[1731364948823,0.02421272,86849.0,86845.0,0.005]
[1731364949031,0.02421272,86849.0,86848.0,0.005]
[1731364949379,0.02421272,86849.0,86848.0,0.24895959]
[1731364949581,0.0008509,86850.0,86849.0,0.105]
[1731364949817,0.0008509,86850.0,86849.0,0.24626212]
[1731364951389,0.1668878,86861.0,86849.0,0.24626212]
[1731364951587,0.1668878,86861.0,86848.0,0.005]
[1731364951588,0.1668878,86861.0,86859.0,0.005]
[1731364951964,0.0008509,86863.0,86859.0,0.005]
[1731364952746,0.0008509,86863.0,86862.0,0.005]
[1731364953431,0.0008509,86863.0,86862.0,0.01]
[1731364953636,0.0008509,86863.0,86862.0,0.03521386]
[1731364953971,0.02473667,86863.0,86862.0,0.03521386]
[1731364954179,0.0008509,86863.0,86862.0,0.03521386]
[1731364956058,0.0008509,86863.0,86862.0,0.14943691]
[1731364956269,0.0008509,86863.0,86862.0,0.24943691]
[1731364959724,0.0008509,86863.0,86862.0,0.25443691]
[1731364961219,0.0752,86895.0,86889.0,0.005]
[1731364961412,0.17955359,86890.0,86889.0,0.005]
[1731364961749,0.02413634,86890.0,86889.0,0.005]
[1731364961969,0.01141634,86890.0,86889.0,0.005]
[1731364962173,0.02413634,86890.0,86889.0,0.005]
[1731364963129,0.02413634,86894.0,86889.0,0.005]
[1731364963333,0.02310868,86890.0,86889.0,0.005]
[1731364963529,0.01910868,86890.0,86889.0,0.005]
[1731364963672,0.01710868,86890.0,86889.0,0.005]
[1731364964545,0.02310868,86890.0,86889.0,0.005]
[1731364964951,0.0794,86923.0,86890.0,0.005]
[1731364965108,0.17263206,86910.0,86895.0,0.005]
[1731364965316,0.17453906,86909.0,86895.0,0.01230139]
[1731364966565,0.17453906,86909.0,86895.0,0.03590586]
[1731364966741,0.17453906,86909.0,86895.0,0.01230139]
[1731364966931,0.17453906,86909.0,86895.0,0.12652444]
[1731364967134,0.17453906,86909.0,86895.0,0.22652444]
[1731364967334,0.001907,86909.0,86895.0,0.22652444]
[1731364967533,0.001907,86909.0,86895.0,0.23450186]
[1731364967734,0.001907,86909.0,86895.0,0.23950186]
[1731364968051,0.0013638,86904.0,86895.0,0.23950186]
[1731364970866,0.0013638,86904.0,86895.0,0.27269718]
[1731364971033,0.0013638,86904.0,86895.0,0.23950186]
[1731364971469,0.0013638,86904.0,86895.0,0.23720047]
[1731364971582,0.0013638,86904.0,86895.0,0.23950144]
[1731364971985,0.0013638,86904.0,86895.0,0.23720047]
[1731364972904,0.0013638,86904.0,86895.0,0.23950144]
[1731364974871,0.0013638,86904.0,86895.0,0.24450144]
[1731364975512,0.0013638,86904.0,86895.0,0.26750144]
[1731364976573,0.0013638,86904.0,86895.0,0.21922305]
[1731364976720,0.0013638,86904.0,86895.0,0.005]
[1731364976922,0.0013638,86904.0,86890.0,0.005]
[1731364976923,0.20129877,86904.0,86890.0,0.005]
[1731364977182,0.0453,86895.0,86890.0,0.005]
[1731364977315,0.0453,86895.0,86877.0,0.004595]
[1731364977520,0.19142305,86894.0,86882.0,0.17263206]
[1731364977778,0.19142305,86894.0,86870.0,0.005]
[1731364978092,0.023,86893.0,86866.0,0.005]
[1731364978299,0.11422305,86892.0,86866.0,0.005]
[1731364978458,0.023,86891.0,86869.0,0.005]
[1731364978627,0.023,86891.0,86862.0,0.005]
[1731364978628,0.1317,86875.0,86858.0,0.045964]
[1731364978829,0.11422305,86874.0,86871.0,0.17263206]
[1731364979091,0.023,86873.0,86862.0,0.17263206]
[1731364979403,0.1317,86875.0,86862.0,0.17263206]
[1731364979404,0.023,86871.0,86862.0,0.17263206]
[1731364979620,0.11422305,86870.0,86862.0,0.17263206]
[1731364979815,0.11422305,86870.0,86850.0,0.005]
[1731364980767,0.11422305,86870.0,86853.0,0.1]
[1731364980970,0.11422305,86870.0,86862.0,0.001701]
[1731364981992,0.11131789,86870.0,86862.0,0.001701]
[1731364983963,0.11131789,86870.0,86863.0,0.17263206]
[1731364984163,0.11131789,86870.0,86862.0,0.001701]
[1731364984164,0.1317,86875.0,86864.0,0.17263206]
[1731364984402,0.11422305,86874.0,86862.0,0.001701]
[1731364986235,0.1317,86875.0,86869.0,0.005]
[1731364988143,0.0008505,86890.0,86889.0,0.005]
[1731364988348,0.00144024,86914.0,86913.0,0.005]
[1731364988544,0.00144024,86914.0,86913.0,0.21922305]
[1731364988888,0.00144024,86914.0,86913.0,0.24857882]
[1731364989764,0.00144024,86914.0,86913.0,0.005]
[1731364990180,0.00144024,86914.0,86913.0,0.03205504]
[1731364992626,0.00110223,86914.0,86913.0,0.03205504]
[1731364993356,0.00195293,86914.0,86913.0,0.03205504]
[1731364999247,0.00195293,86914.0,86913.0,0.03140293]
[1731365004938,0.00195293,86914.0,86913.0,0.03310353]
[1731365005748,0.00195293,86914.0,86913.0,0.03769753]
[1731365006954,0.00195293,86914.0,86913.0,0.03310353]
[1731365011000,0.0794,86927.0,86915.0,0.005]
[1731365011174,0.0794,86927.0,86916.0,0.02827396]
[1731365012562,0.0794,86927.0,86918.0,0.1]
[1731365012859,0.0794,86927.0,86919.0,0.02909984]
[1731365013604,0.13386725,86935.0,86919.0,0.02909984]
[1731365013605,0.13186725,86935.0,86919.0,0.02909984]
[1731365013966,0.11422305,86934.0,86919.0,0.02909984]
[1731365015340,0.11422305,86934.0,86927.0,0.17263206]
[1731365015559,0.09678075,86934.0,86919.0,0.02909984]
[1731365015895,0.13186725,86933.0,86919.0,0.02909984]
[1731365016105,0.2460903,86933.0,86919.0,0.02909984]